[Event "*** SCC Grand Prix: Titled Tuesday Blitz"]
[Site "Chess.com"]
[Date "2020.10.13"]
[Round "5"]
[White "Keithonsky"]
[Black "ApacheSVD"]
[Result "1-0"]
[WhiteElo "2583"]
[BlackElo "2392"]
[TimeControl "180+1"]
[EndTime "10:55:12 PDT"]
[Termination "Keithonsky won by resignation"]

1. d4 {[%clk 0:03:00.9]} 1... Nf6 {[%clk 0:02:57.5]} 2. c4 {[%clk 0:03:01.1]}
2... c5 {[%clk 0:02:55.8]} 3. d5 {[%clk 0:03:00.8]} 3... b5 {[%clk 0:02:56.3]}
4. Qc2 {[%clk 0:03:00.6]} 4... bxc4 {[%clk 0:02:50.4]} 5. e4 {[%clk 0:03:00.8]}
5... d6 {[%clk 0:02:50.8]} 6. Bxc4 {[%clk 0:03:01.2]} 6... g6 {[%clk 0:02:51.5]}
7. Nf3 {[%clk 0:03:01.8]} 7... Bg7 {[%clk 0:02:52.2]} 8. h3 {[%clk 0:03:01.7]}
8... O-O {[%clk 0:02:52.7]} 9. O-O {[%clk 0:03:02.2]} 9... Ba6 {[%clk
0:02:53.2]} 10. Na3 {[%clk 0:03:02.4]} 10... Nfd7 {[%clk 0:02:52.6]} 11. Rb1
{[%clk 0:02:58.6]} 11... Nb6 {[%clk 0:02:52.7]} 12. Be2 {[%clk 0:02:57.1]} 12...
Qc8 {[%clk 0:02:47.1]} 13. Bg5 {[%clk 0:02:53.2]} 13... Re8 {[%clk 0:02:29.7]}
14. b3 {[%clk 0:02:49.1]} 14... Bxe2 {[%clk 0:02:27.8]} 15. Qxe2 {[%clk
0:02:50]} 15... Na6 {[%clk 0:02:28.3]} 16. Rfd1 {[%clk 0:02:45.9]} 16... Nb4
{[%clk 0:02:27.8]} 17. Rbc1 {[%clk 0:02:41.3]} 17... Qb7 {[%clk 0:02:26.2]} 18.
Nb1 {[%clk 0:02:24.3]} 18... a5 {[%clk 0:02:23]} 19. a3 {[%clk 0:02:24.2]} 19...
Na6 {[%clk 0:02:22.7]} 20. Nfd2 {[%clk 0:02:20.5]} 20... a4 {[%clk 0:02:17.8]}
21. bxa4 {[%clk 0:02:13.6]} 21... Nxa4 {[%clk 0:02:18.7]} 22. Nc4 {[%clk
0:02:14.2]} 22... Rab8 {[%clk 0:02:02.8]} 23. Na5 {[%clk 0:02:11]} 23... Qb5
{[%clk 0:01:32.2]} 24. Qxb5 {[%clk 0:02:10]} 24... Rxb5 {[%clk 0:01:33.1]} 25.
Nc6 {[%clk 0:02:10.9]} 25... Kf8 {[%clk 0:01:33.8]} 26. Rc4 {[%clk 0:02:06.5]}
26... Nb6 {[%clk 0:01:32.7]} 27. Rc2 {[%clk 0:02:04.6]} 27... Na4 {[%clk
0:01:32]} 28. Nd2 {[%clk 0:01:58.9]} 28... Nc3 {[%clk 0:01:22.1]} 29. Re1 {[%clk
0:01:57.6]} 29... h6 {[%clk 0:01:19.2]} 30. Bh4 {[%clk 0:01:54.7]} 30... Nb8
{[%clk 0:00:51]} 31. Nxb8 {[%clk 0:01:42.3]} 31... Rexb8 {[%clk 0:00:49.7]} 32.
e5 {[%clk 0:01:40.6]} 32... Nxd5 {[%clk 0:00:43.7]} 33. exd6 {[%clk 0:01:40.6]}
33... exd6 {[%clk 0:00:44.6]} 34. Nc4 {[%clk 0:01:38.5]} 34... Bd4 {[%clk
0:00:25.7]} 35. Nxd6 {[%clk 0:01:33.2]} 35... Rb2 {[%clk 0:00:25.9]} 36. Rxb2
{[%clk 0:01:31.3]} 36... Rxb2 {[%clk 0:00:26.8]} 37. Re8+ {[%clk 0:01:28.7]}
37... Kg7 {[%clk 0:00:26]} 38. Rd8 {[%clk 0:01:19]} 38... Nc3 {[%clk 0:00:19.4]}
39. Ne8+ {[%clk 0:01:18.4]} 39... Kh7 {[%clk 0:00:19.5]} 40. Nf6+ {[%clk
0:01:18.6]} 40... Bxf6 {[%clk 0:00:15.7]} 41. Bxf6 {[%clk 0:01:19.5]} 41... Ne2+
{[%clk 0:00:15.7]} 42. Kh2 {[%clk 0:01:19.4]} 1-0

[Event "*** SCC Grand Prix: Titled Tuesday Blitz"]
[Site "Chess.com"]
[Date "2020.10.13"]
[Round "5"]
[White "PavelShkapenko"]
[Black "bait_or_mate"]
[Result "1-0"]
[WhiteElo "2709"]
[BlackElo "2513"]
[TimeControl "180+1"]
[EndTime "10:55:14 PDT"]
[Termination "PavelShkapenko won by checkmate"]

1. e4 {[%clk 0:03:00.9]} 1... c6 {[%clk 0:02:58.3]} 2. d4 {[%clk 0:03:00.7]}
2... d5 {[%clk 0:02:57.3]} 3. e5 {[%clk 0:03:01.2]} 3... c5 {[%clk 0:02:57.5]}
4. dxc5 {[%clk 0:03:00.8]} 4... e6 {[%clk 0:02:58.1]} 5. a3 {[%clk 0:03:00.3]}
5... Bxc5 {[%clk 0:02:58.3]} 6. b4 {[%clk 0:02:59.7]} 6... Bb6 {[%clk
0:02:58.2]} 7. Qg4 {[%clk 0:02:59.5]} 7... Kf8 {[%clk 0:02:46.2]} 8. Nf3 {[%clk
0:02:59]} 8... Ne7 {[%clk 0:02:44.3]} 9. Bd3 {[%clk 0:02:56.7]} 9... Nbc6 {[%clk
0:02:44.3]} 10. O-O {[%clk 0:02:56]} 10... Ng6 {[%clk 0:02:43]} 11. Re1 {[%clk
0:02:50.9]} 11... f5 {[%clk 0:02:28.5]} 12. Qg3 {[%clk 0:02:36.1]} 12... Bd7
{[%clk 0:02:26.8]} 13. Nbd2 {[%clk 0:02:23.1]} 13... Qe7 {[%clk 0:01:53.7]} 14.
c4 {[%clk 0:02:20.4]} 14... dxc4 {[%clk 0:01:43.8]} 15. Nxc4 {[%clk 0:02:20.1]}
15... Bc7 {[%clk 0:01:43.2]} 16. Bg5 {[%clk 0:02:12.1]} 16... Qf7 {[%clk
0:01:39.1]} 17. b5 {[%clk 0:02:08.6]} 17... Nce7 {[%clk 0:01:35.3]} 18. Nd6
{[%clk 0:01:58.1]} 18... Bxd6 {[%clk 0:01:29.5]} 19. exd6 {[%clk 0:01:58.1]}
19... Nd5 {[%clk 0:01:25.7]} 20. Ne5 {[%clk 0:01:31.5]} 20... Nxe5 {[%clk
0:01:24.9]} 21. Qxe5 {[%clk 0:01:32]} 21... h6 {[%clk 0:01:22.7]} 22. Bd2 {[%clk
0:01:28.8]} 22... Qf6 {[%clk 0:01:20.4]} 23. Bc4 {[%clk 0:01:21.2]} 23... Qxe5
{[%clk 0:00:44.9]} 24. Rxe5 {[%clk 0:01:19]} 24... Rc8 {[%clk 0:00:38.8]} 25.
Bxd5 {[%clk 0:01:18.5]} 25... exd5 {[%clk 0:00:39.7]} 26. Bb4 {[%clk 0:01:11.9]}
26... d4 {[%clk 0:00:17.7]} 27. Re7 {[%clk 0:01:11.3]} 27... Rd8 {[%clk
0:00:17.8]} 28. Rc1 {[%clk 0:01:09.7]} 28... Kg8 {[%clk 0:00:14.9]} 29. Rc7
{[%clk 0:01:09.2]} 29... Bxb5 {[%clk 0:00:12.9]} 30. Rxg7+ {[%clk 0:01:08.7]}
30... Kf8 {[%clk 0:00:13.4]} 31. Rcf7+ {[%clk 0:00:52.8]} 31... Ke8 {[%clk
0:00:13.2]} 32. Re7+ {[%clk 0:00:53.1]} 32... Kf8 {[%clk 0:00:13.4]} 33. d7
{[%clk 0:00:50.5]} 33... Bc4 {[%clk 0:00:11.2]} 34. Ref7# {[%clk 0:00:47.8]} 1-0

[Event "*** SCC Grand Prix: Titled Tuesday Blitz"]
[Site "Chess.com"]
[Date "2020.10.13"]
[Round "5"]
[White "alexrustemov"]
[Black "Piotrek1979"]
[Result "1-0"]
[WhiteElo "2691"]
[BlackElo "2426"]
[TimeControl "180+1"]
[EndTime "10:55:14 PDT"]
[Termination "alexrustemov won by checkmate"]

1. d4 {[%clk 0:03:00.9]} 1... Nf6 {[%clk 0:02:41.7]} 2. c4 {[%clk 0:03:00]} 2...
g6 {[%clk 0:02:42.3]} 3. Nf3 {[%clk 0:02:59.6]} 3... Bg7 {[%clk 0:02:42.9]} 4.
g3 {[%clk 0:03:00.2]} 4... O-O {[%clk 0:02:43.5]} 5. Bg2 {[%clk 0:03:00.7]} 5...
d6 {[%clk 0:02:44.2]} 6. Nc3 {[%clk 0:03:00.8]} 6... Nc6 {[%clk 0:02:43.8]} 7.
O-O {[%clk 0:03:00.4]} 7... Bf5 {[%clk 0:02:42.8]} 8. Ne1 {[%clk 0:02:59.7]}
8... e5 {[%clk 0:02:40.2]} 9. d5 {[%clk 0:02:59.6]} 9... Ne7 {[%clk 0:02:40.2]}
10. e4 {[%clk 0:02:59.6]} 10... Bd7 {[%clk 0:02:40.8]} 11. Nd3 {[%clk
0:02:58.7]} 11... b6 {[%clk 0:02:40.5]} 12. h3 {[%clk 0:02:54.3]} 12... a5
{[%clk 0:02:39.1]} 13. Be3 {[%clk 0:02:52.5]} 13... Ne8 {[%clk 0:02:38.2]} 14.
f4 {[%clk 0:02:49.5]} 14... f6 {[%clk 0:02:33.1]} 15. Qd2 {[%clk 0:02:48.9]}
15... Kh8 {[%clk 0:02:29.7]} 16. Rae1 {[%clk 0:02:44.1]} 16... Ng8 {[%clk
0:02:28.3]} 17. f5 {[%clk 0:02:37.4]} 17... Qe7 {[%clk 0:02:03.5]} 18. h4 {[%clk
0:02:30.3]} 18... c5 {[%clk 0:01:59.5]} 19. dxc6 {[%clk 0:02:27.1]} 19... Bxc6
{[%clk 0:01:58.9]} 20. g4 {[%clk 0:02:23.6]} 20... Rb8 {[%clk 0:01:52.1]} 21. a4
{[%clk 0:02:22.3]} 21... Nc7 {[%clk 0:01:50.1]} 22. b3 {[%clk 0:02:20.7]} 22...
Na6 {[%clk 0:01:49.8]} 23. g5 {[%clk 0:02:14.8]} 23... Nc5 {[%clk 0:01:46.9]}
24. Nxc5 {[%clk 0:02:12.7]} 24... bxc5 {[%clk 0:01:40.3]} 25. Nb5 {[%clk
0:02:12.6]} 25... Rbd8 {[%clk 0:01:09]} 26. Qxa5 {[%clk 0:02:11.5]} 26... gxf5
{[%clk 0:00:57.7]} 27. exf5 {[%clk 0:02:10.7]} 27... Bxg2 {[%clk 0:00:58.2]} 28.
Kxg2 {[%clk 0:02:10.9]} 28... d5 {[%clk 0:00:56.7]} 29. Qc7 {[%clk 0:02:01.6]}
29... d4 {[%clk 0:00:51.8]} 30. Qxe7 {[%clk 0:02:00.1]} 30... Nxe7 {[%clk
0:00:52.7]} 31. Bd2 {[%clk 0:01:56.4]} 31... fxg5 {[%clk 0:00:51.1]} 32. Bxg5
{[%clk 0:01:50.9]} 32... Bf6 {[%clk 0:00:50.8]} 33. Bxf6+ {[%clk 0:01:42.3]}
33... Rxf6 {[%clk 0:00:51.7]} 34. Rxe5 {[%clk 0:01:42.6]} 34... Rg8+ {[%clk
0:00:52.1]} 35. Kh3 {[%clk 0:01:41.6]} 35... Ng6 {[%clk 0:00:51.5]} 36. Re6
{[%clk 0:01:21.5]} 36... Rf7 {[%clk 0:00:36.8]} 37. Nd6 {[%clk 0:01:19]} 37...
Rff8 {[%clk 0:00:34.7]} 38. f6 {[%clk 0:00:59.5]} 38... Rb8 {[%clk 0:00:20.4]}
39. Rf3 {[%clk 0:00:57.9]} 39... Nf8 {[%clk 0:00:18.9]} 40. Nf7# {[%clk
0:00:55.6]} 1-0

[Event "*** SCC Grand Prix: Titled Tuesday Blitz"]
[Site "Chess.com"]
[Date "2020.10.13"]
[Round "5"]
[White "GMSrinath"]
[Black "Semen16"]
[Result "1-0"]
[WhiteElo "2808"]
[BlackElo "2461"]
[TimeControl "180+1"]
[EndTime "10:55:15 PDT"]
[Termination "GMSrinath won by resignation"]

1. e4 {[%clk 0:03:00.9]} 1... e5 {[%clk 0:02:59.4]} 2. Nf3 {[%clk 0:03:00.9]}
2... Nc6 {[%clk 0:02:59.3]} 3. Bb5 {[%clk 0:03:00.6]} 3... a6 {[%clk 0:02:59.3]}
4. Ba4 {[%clk 0:03:00.7]} 4... Nf6 {[%clk 0:02:59.3]} 5. O-O {[%clk 0:03:01.1]}
5... Be7 {[%clk 0:02:59.4]} 6. Re1 {[%clk 0:03:01.3]} 6... b5 {[%clk 0:02:59.6]}
7. Bb3 {[%clk 0:03:01.6]} 7... O-O {[%clk 0:03:00.3]} 8. a4 {[%clk 0:02:57.8]}
8... Rb8 {[%clk 0:03:00]} 9. d3 {[%clk 0:02:57]} 9... d6 {[%clk 0:02:54.7]} 10.
Nc3 {[%clk 0:02:55.3]} 10... b4 {[%clk 0:02:52.7]} 11. Nd5 {[%clk 0:02:55.4]}
11... Na5 {[%clk 0:02:52.1]} 12. Ba2 {[%clk 0:02:47.3]} 12... b3 {[%clk
0:02:36.1]} 13. Nxe7+ {[%clk 0:02:42.1]} 13... Qxe7 {[%clk 0:02:34.9]} 14. cxb3
{[%clk 0:02:43]} 14... Be6 {[%clk 0:02:31.7]} 15. b4 {[%clk 0:02:34.4]} 15...
Nc6 {[%clk 0:02:13]} 16. Bxe6 {[%clk 0:02:14.6]} 16... fxe6 {[%clk 0:02:12.3]}
17. h3 {[%clk 0:02:10.8]} 17... Rxb4 {[%clk 0:02:02.8]} 18. Qc2 {[%clk
0:02:09.6]} 18... Nd4 {[%clk 0:01:48]} 19. Nxd4 {[%clk 0:02:07.6]} 19... exd4
{[%clk 0:01:48.9]} 20. Bd2 {[%clk 0:01:59.6]} 20... Rb6 {[%clk 0:01:46.7]} 21.
a5 {[%clk 0:01:46.5]} 21... Rb5 {[%clk 0:01:38.9]} 22. b4 {[%clk 0:01:44]} 22...
Nd7 {[%clk 0:01:35.5]} 23. Qxc7 {[%clk 0:01:32.4]} 23... Rfb8 {[%clk 0:01:27.3]}
24. Rac1 {[%clk 0:01:24.4]} 24... R5b7 {[%clk 0:01:22.9]} 25. Qc4 {[%clk
0:01:24]} 25... Ne5 {[%clk 0:01:22.3]} 26. Qxd4 {[%clk 0:01:23.2]} 26... Rf8
{[%clk 0:01:12.8]} 27. f4 {[%clk 0:01:17.1]} 27... Nd7 {[%clk 0:01:12.5]} 28.
Rc6 {[%clk 0:01:16.5]} 28... Qh4 {[%clk 0:01:10.1]} 29. Qxd6 {[%clk 0:01:11.9]}
29... Nf6 {[%clk 0:01:02.7]} 30. Qxe6+ {[%clk 0:01:09.7]} 30... Kh8 {[%clk
0:01:02.8]} 31. Rxa6 {[%clk 0:01:07]} 31... h6 {[%clk 0:00:58.6]} 32. Rb6 {[%clk
0:01:01.5]} 32... Rc7 {[%clk 0:00:57.7]} 33. Qd6 {[%clk 0:00:57.5]} 33... Rcc8
{[%clk 0:00:54.7]} 34. f5 {[%clk 0:00:57.7]} 34... Nh5 {[%clk 0:00:43.3]} 35.
Qe5 {[%clk 0:00:42.8]} 35... Rfe8 {[%clk 0:00:39.8]} 36. Rxh6+ {[%clk
0:00:41.8]} 36... Kg8 {[%clk 0:00:37.1]} 37. Qd5+ {[%clk 0:00:41.9]} 37... Kf8
{[%clk 0:00:36.9]} 38. Rh8+ {[%clk 0:00:41.8]} 38... Ke7 {[%clk 0:00:37.2]} 39.
Qe6+ {[%clk 0:00:40.6]} 1-0

[Event "*** SCC Grand Prix: Titled Tuesday Blitz"]
[Site "Chess.com"]
[Date "2020.10.13"]
[Round "5"]
[White "VerdeNotte"]
[Black "Sashadav97"]
[Result "1-0"]
[WhiteElo "2831"]
[BlackElo "2599"]
[TimeControl "180+1"]
[EndTime "10:55:17 PDT"]
[Termination "VerdeNotte won on time"]

1. e4 {[%clk 0:03:00.9]} 1... c6 {[%clk 0:02:59.4]} 2. Nf3 {[%clk 0:02:58.1]}
2... d5 {[%clk 0:03:00.3]} 3. exd5 {[%clk 0:02:58.2]} 3... cxd5 {[%clk
0:03:01.2]} 4. d4 {[%clk 0:02:58.8]} 4... Nc6 {[%clk 0:02:55.3]} 5. Ne5 {[%clk
0:02:58.3]} 5... a6 {[%clk 0:02:54.8]} 6. c4 {[%clk 0:02:56.1]} 6... Nf6 {[%clk
0:02:48.8]} 7. Nc3 {[%clk 0:02:55.5]} 7... Be6 {[%clk 0:02:37.6]} 8. Nxc6 {[%clk
0:02:47.7]} 8... bxc6 {[%clk 0:02:35.7]} 9. c5 {[%clk 0:02:48.4]} 9... g6 {[%clk
0:02:32.8]} 10. Na4 {[%clk 0:02:46.7]} 10... Nd7 {[%clk 0:02:21.2]} 11. Be2
{[%clk 0:02:46.2]} 11... Bg7 {[%clk 0:02:20.4]} 12. O-O {[%clk 0:02:45.9]} 12...
O-O {[%clk 0:02:20.4]} 13. Be3 {[%clk 0:02:45.1]} 13... a5 {[%clk 0:02:12.3]}
14. a3 {[%clk 0:02:43.8]} 14... Rb8 {[%clk 0:02:01.3]} 15. Bf4 {[%clk
0:02:43.4]} 15... Rb7 {[%clk 0:01:57.4]} 16. Qd2 {[%clk 0:02:42.7]} 16... Bf5
{[%clk 0:01:46.7]} 17. Bh6 {[%clk 0:02:39.9]} 17... Bxh6 {[%clk 0:01:28.9]} 18.
Qxh6 {[%clk 0:02:40.8]} 18... Bc2 {[%clk 0:01:29.1]} 19. Bd1 {[%clk 0:02:41.2]}
19... Bxa4 {[%clk 0:01:23.5]} 20. Bxa4 {[%clk 0:02:42.1]} 20... Qc7 {[%clk
0:01:23.2]} 21. Rab1 {[%clk 0:02:31.5]} 21... Rfb8 {[%clk 0:01:14.4]} 22. Qd2
{[%clk 0:02:30.7]} 22... e5 {[%clk 0:01:11.4]} 23. b4 {[%clk 0:02:30.6]} 23...
e4 {[%clk 0:00:52]} 24. g3 {[%clk 0:02:25.7]} 24... Kg7 {[%clk 0:00:52]} 25. f3
{[%clk 0:02:09.6]} 25... Nf6 {[%clk 0:00:48.3]} 26. Bc2 {[%clk 0:02:08.5]} 26...
axb4 {[%clk 0:00:46]} 27. axb4 {[%clk 0:02:08.4]} 27... exf3 {[%clk 0:00:22.6]}
28. Rxf3 {[%clk 0:02:08]} 28... Ne4 {[%clk 0:00:23.2]} 29. Qe1 {[%clk
0:01:52.8]} 29... f5 {[%clk 0:00:20.4]} 30. Bxe4 {[%clk 0:01:32.7]} 30... dxe4
{[%clk 0:00:21.3]} 31. Ra3 {[%clk 0:01:32.6]} 31... Re8 {[%clk 0:00:14.7]} 32.
b5 {[%clk 0:01:28.7]} 32... cxb5 {[%clk 0:00:12.5]} 33. Qc3 {[%clk 0:01:27.8]}
33... e3 {[%clk 0:00:10.2]} 34. d5+ {[%clk 0:01:27.8]} 34... Qe5 {[%clk
0:00:10.2]} 35. c6 {[%clk 0:01:25.2]} 35... Rc7 {[%clk 0:00:08]} 36. d6 {[%clk
0:01:21.4]} 36... Rxc6 {[%clk 0:00:04.6]} 37. Qxc6 {[%clk 0:01:21]} 37... e2
{[%clk 0:00:05]} 38. Re1 {[%clk 0:01:09.8]} 38... Qd4+ {[%clk 0:00:05]} 39. Kg2
{[%clk 0:01:10]} 39... Re4 {[%clk 0:00:02.3]} 40. Qc3 {[%clk 0:01:09.2]} 1-0

[Event "*** SCC Grand Prix: Titled Tuesday Blitz"]
[Site "Chess.com"]
[Date "2020.10.13"]
[Round "5"]
[White "tornikesanikidze"]
[Black "BilodeauA"]
[Result "1-0"]
[WhiteElo "2685"]
[BlackElo "2896"]
[TimeControl "180+1"]
[EndTime "10:55:18 PDT"]
[Termination "tornikesanikidze won by resignation"]

1. d4 {[%clk 0:03:00.9]} 1... d5 {[%clk 0:02:59.3]} 2. c4 {[%clk 0:03:00.7]}
2... dxc4 {[%clk 0:03:00.2]} 3. e4 {[%clk 0:03:00.6]} 3... Nf6 {[%clk
0:03:00.2]} 4. e5 {[%clk 0:03:00.9]} 4... Nd5 {[%clk 0:03:00.9]} 5. Bxc4 {[%clk
0:03:01]} 5... Nb6 {[%clk 0:03:01.6]} 6. Bd3 {[%clk 0:03:00.6]} 6... Nc6 {[%clk
0:03:02.3]} 7. Ne2 {[%clk 0:02:58.3]} 7... Bg4 {[%clk 0:03:02.3]} 8. f3 {[%clk
0:02:58.1]} 8... Bh5 {[%clk 0:03:02.8]} 9. Nbc3 {[%clk 0:02:53.6]} 9... e6
{[%clk 0:03:03]} 10. Be4 {[%clk 0:02:51.4]} 10... Qd7 {[%clk 0:03:02.1]} 11. Bg5
{[%clk 0:02:47.1]} 11... Bg6 {[%clk 0:02:54.6]} 12. O-O {[%clk 0:02:43]} 12...
Be7 {[%clk 0:02:41.6]} 13. Bxc6 {[%clk 0:02:39]} 13... Qxc6 {[%clk 0:02:37.8]}
14. Bxe7 {[%clk 0:02:36.4]} 14... Kxe7 {[%clk 0:02:38.7]} 15. Rc1 {[%clk
0:02:35.6]} 15... Qd7 {[%clk 0:02:31.8]} 16. Nf4 {[%clk 0:02:32]} 16... Rhd8
{[%clk 0:02:28.5]} 17. d5 {[%clk 0:02:06.2]} 17... exd5 {[%clk 0:02:22.4]} 18.
Re1 {[%clk 0:01:48.3]} 18... Bf5 {[%clk 0:02:16.2]} 19. e6 {[%clk 0:01:45.1]}
19... Bxe6 {[%clk 0:02:16.1]} 20. Qd4 {[%clk 0:01:34.3]} 20... Kf8 {[%clk
0:01:49.9]} 21. Nh5 {[%clk 0:01:33.4]} 21... f6 {[%clk 0:01:49.9]} 22. Nxf6
{[%clk 0:01:33.4]} 22... gxf6 {[%clk 0:01:37.4]} 23. Qxf6+ {[%clk 0:01:34.3]}
23... Bf7 {[%clk 0:01:36.2]} 24. Qh8+ {[%clk 0:01:20.1]} 24... Bg8 {[%clk
0:01:36.4]} 25. Re5 {[%clk 0:01:12.9]} 25... Re8 {[%clk 0:01:11.3]} 26. Rg5
{[%clk 0:01:10.1]} 26... Ke7 {[%clk 0:00:39.3]} 27. Re1+ {[%clk 0:01:08.1]}
27... Kd6 {[%clk 0:00:32]} 28. Qf6+ {[%clk 0:01:02.7]} 28... Be6 {[%clk
0:00:19.2]} 29. Rg7 {[%clk 0:00:56.3]} 29... Re7 {[%clk 0:00:17]} 30. Nb5+
{[%clk 0:00:50.6]} 30... Kc5 {[%clk 0:00:10]} 31. Rxe7 {[%clk 0:00:49.3]} 31...
Qxb5 {[%clk 0:00:10.1]} 32. Rxc7+ {[%clk 0:00:46]} 32... Kb4 {[%clk 0:00:09.9]}
33. Qc3+ {[%clk 0:00:45.5]} 1-0

[Event "*** SCC Grand Prix: Titled Tuesday Blitz"]
[Site "Chess.com"]
[Date "2020.10.13"]
[Round "5"]
[White "BursaBBSatranc"]
[Black "Snegokhod"]
[Result "0-1"]
[WhiteElo "2585"]
[BlackElo "2424"]
[TimeControl "180+1"]
[EndTime "10:55:18 PDT"]
[Termination "Snegokhod won by resignation"]

1. d4 {[%clk 0:03:00.9]} 1... Nf6 {[%clk 0:02:56.1]} 2. Bf4 {[%clk 0:03:00.7]}
2... Nh5 {[%clk 0:02:53.9]} 3. Bg5 {[%clk 0:02:55.3]} 3... h6 {[%clk 0:02:53.4]}
4. Bh4 {[%clk 0:02:55.8]} 4... g5 {[%clk 0:02:53.2]} 5. e3 {[%clk 0:02:55.8]}
5... gxh4 {[%clk 0:02:49.9]} 6. Qxh5 {[%clk 0:02:55]} 6... e6 {[%clk 0:02:50.2]}
7. Nf3 {[%clk 0:02:47.4]} 7... Nc6 {[%clk 0:02:39.8]} 8. Qxh4 {[%clk 0:02:44.5]}
8... Qxh4 {[%clk 0:02:36]} 9. Nxh4 {[%clk 0:02:45.4]} 9... d6 {[%clk 0:02:32.4]}
10. a3 {[%clk 0:02:41.5]} 10... Bd7 {[%clk 0:02:32]} 11. c4 {[%clk 0:02:40.1]}
11... e5 {[%clk 0:02:31.4]} 12. Nf3 {[%clk 0:02:39.2]} 12... exd4 {[%clk
0:02:31.3]} 13. exd4 {[%clk 0:02:33.9]} 13... Bg7 {[%clk 0:02:31]} 14. Nc3
{[%clk 0:02:33.5]} 14... Nxd4 {[%clk 0:02:28.9]} 15. Be2 {[%clk 0:02:27.7]}
15... Nc2+ {[%clk 0:02:22]} 16. Kd2 {[%clk 0:02:27.5]} 16... Nxa1 {[%clk
0:02:22]} 17. Rxa1 {[%clk 0:02:28.4]} 17... Bxc3+ {[%clk 0:02:19.6]} 18. Kxc3
{[%clk 0:02:27.8]} 18... Bg4 {[%clk 0:02:16.3]} 19. Re1 {[%clk 0:02:26.7]} 19...
O-O-O {[%clk 0:02:10.9]} 20. Nd4 {[%clk 0:02:16]} 20... Bxe2 {[%clk 0:02:10.1]}
21. Rxe2 {[%clk 0:02:16.9]} 21... Rde8 {[%clk 0:02:09.6]} 22. Rd2 {[%clk
0:02:17.4]} 22... Rhg8 {[%clk 0:02:08.1]} 23. g3 {[%clk 0:02:17.3]} 23... Re1
{[%clk 0:02:04.6]} 24. h4 {[%clk 0:02:16.1]} 24... Rge8 {[%clk 0:02:03.7]} 25.
Nf5 {[%clk 0:02:11.9]} 25... h5 {[%clk 0:01:45.4]} 26. Ne3 {[%clk 0:02:09.9]}
26... Kd7 {[%clk 0:01:39.1]} 27. Nd5 {[%clk 0:02:09.3]} 27... R8e5 {[%clk
0:01:29.9]} 28. c5 {[%clk 0:02:03.7]} 28... Kc6 {[%clk 0:01:24.6]} 29. Nb4+
{[%clk 0:02:00.5]} 29... Kxc5 {[%clk 0:01:21.6]} 30. Nd3+ {[%clk 0:02:00.3]}
30... Kc6 {[%clk 0:01:21.4]} 31. Nxe1 {[%clk 0:01:57.8]} 31... Rxe1 {[%clk
0:01:20.8]} 32. Rd4 {[%clk 0:01:57.7]} 32... Re5 {[%clk 0:01:15.4]} 33. Rf4
{[%clk 0:01:56.7]} 33... f5 {[%clk 0:01:15.1]} 34. Kd3 {[%clk 0:01:56.2]} 34...
d5 {[%clk 0:01:14.7]} 35. Ra4 {[%clk 0:01:36.5]} 35... a6 {[%clk 0:01:13.9]} 36.
Rb4 {[%clk 0:01:33]} 36... b6 {[%clk 0:01:09.4]} 37. Kd2 {[%clk 0:01:28.5]}
37... Re4 {[%clk 0:01:03.3]} 38. Rb3 {[%clk 0:01:28.2]} 38... Kd6 {[%clk
0:01:00.3]} 39. Rf3 {[%clk 0:01:25.1]} 39... Ke5 {[%clk 0:00:56]} 40. Rd3 {[%clk
0:01:06.4]} 40... c5 {[%clk 0:00:54.7]} 41. b3 {[%clk 0:00:59.3]} 41... Rd4
{[%clk 0:00:53.9]} 42. Ke3 {[%clk 0:00:58]} 42... Rxd3+ {[%clk 0:00:53.3]} 43.
Kxd3 {[%clk 0:00:58.9]} 43... f4 {[%clk 0:00:50.6]} 44. a4 {[%clk 0:00:47.8]}
44... fxg3 {[%clk 0:00:50.1]} 45. fxg3 {[%clk 0:00:48.7]} 45... b5 {[%clk
0:00:49.5]} 46. axb5 {[%clk 0:00:48.5]} 46... axb5 {[%clk 0:00:49.4]} 47. Ke3
{[%clk 0:00:49.4]} 47... c4 {[%clk 0:00:46.4]} 48. bxc4 {[%clk 0:00:48.9]} 48...
dxc4 {[%clk 0:00:45.7]} 0-1

[Event "*** SCC Grand Prix: Titled Tuesday Blitz"]
[Site "Chess.com"]
[Date "2020.10.13"]
[Round "5"]
[White "UCantHandleDenker"]
[Black "annazero"]
[Result "0-1"]
[WhiteElo "2538"]
[BlackElo "2363"]
[TimeControl "180+1"]
[EndTime "10:55:18 PDT"]
[Termination "annazero won by resignation"]

1. Nf3 {[%clk 0:03:00.9]} 1... d5 {[%clk 0:02:58.4]} 2. g3 {[%clk 0:03:01]} 2...
Nf6 {[%clk 0:02:54.7]} 3. Bg2 {[%clk 0:03:00.8]} 3... Bf5 {[%clk 0:02:55.1]} 4.
O-O {[%clk 0:03:00.5]} 4... e6 {[%clk 0:02:55.5]} 5. d3 {[%clk 0:03:00.2]} 5...
h6 {[%clk 0:02:52.3]} 6. Nbd2 {[%clk 0:02:59.9]} 6... Be7 {[%clk 0:02:49.1]} 7.
Qe1 {[%clk 0:03:00.2]} 7... Bh7 {[%clk 0:02:45.4]} 8. e4 {[%clk 0:02:59.9]} 8...
c6 {[%clk 0:02:44.7]} 9. Ne5 {[%clk 0:03:00.1]} 9... O-O {[%clk 0:02:43.1]} 10.
f4 {[%clk 0:03:00]} 10... Nbd7 {[%clk 0:02:35.2]} 11. Nxd7 {[%clk 0:02:59.3]}
11... Nxd7 {[%clk 0:02:31.4]} 12. Qe2 {[%clk 0:02:58.9]} 12... dxe4 {[%clk
0:02:24]} 13. dxe4 {[%clk 0:02:58]} 13... Qb6+ {[%clk 0:02:24.7]} 14. Kh1 {[%clk
0:02:57.6]} 14... Rad8 {[%clk 0:02:24.2]} 15. Nc4 {[%clk 0:02:51.3]} 15... Qa6
{[%clk 0:02:24]} 16. b3 {[%clk 0:02:51.4]} 16... Bf6 {[%clk 0:02:20.5]} 17. e5
{[%clk 0:02:48.7]} 17... Be7 {[%clk 0:02:19.3]} 18. a4 {[%clk 0:02:41.5]} 18...
Nb6 {[%clk 0:02:18.9]} 19. Be3 {[%clk 0:01:56.6]} 19... Nxc4 {[%clk 0:02:14.1]}
20. bxc4 {[%clk 0:01:57.5]} 20... Qa5 {[%clk 0:02:07]} 21. Rfb1 {[%clk
0:01:48.6]} 21... b6 {[%clk 0:01:56.5]} 22. Bxc6 {[%clk 0:01:44.2]} 22... Rc8
{[%clk 0:01:55.3]} 23. Bb5 {[%clk 0:01:19.2]} 23... Qc3 {[%clk 0:01:53.5]} 24.
Ra2 {[%clk 0:01:05.6]} 24... Rfd8 {[%clk 0:01:30]} 25. Rb3 {[%clk 0:01:01.3]}
25... Qa5 {[%clk 0:01:28.9]} 26. Bf2 {[%clk 0:00:20.3]} 26... Rd2 {[%clk
0:01:22.6]} 27. Qe1 {[%clk 0:00:20.1]} 27... Rcd8 {[%clk 0:01:16.9]} 28. Rb1
{[%clk 0:00:19.9]} 28... Qc3 {[%clk 0:01:10]} 29. Kg2 {[%clk 0:00:11]} 29... Bc5
{[%clk 0:01:03.6]} 30. Rb3 {[%clk 0:00:10.4]} 30... Qd4 {[%clk 0:01:02.4]} 31.
Rf3 {[%clk 0:00:09.6]} 31... Be4 {[%clk 0:01:00.7]} 32. Ra3 {[%clk 0:00:07]}
32... Rxf2+ {[%clk 0:00:57.6]} 33. Qxf2 {[%clk 0:00:06]} 33... Qxf2+ {[%clk
0:00:57.4]} 34. Kh3 {[%clk 0:00:06.6]} 0-1